fUST/lending_fUST_20251104
["ID","MTS","AMOUNT","RATE_DAILY","PERIOD"]
[393046020,1762242343094,500.0,0.00043835,120]
[393046029,1762242344039,500.0,0.00043835,120]
[393046032,1762242344313,500.0,0.00043835,120]
[393046035,1762242344540,504.98362824,0.00043835,120]
[393046046,1762242345709,533.7964534,0.00043835,120]
[393046058,1762242347078,500.0,0.00043835,120]
[393046075,1762242349133,508.61749029,0.00043835,120]
[393046079,1762242349451,500.0,0.00043835,120]
[393046100,1762242351825,500.0,0.00043835,120]
[393046103,1762242352342,247.09930727,0.00043835,120]
[393046104,1762242353571,500.0,0.00043835,120]
[393046105,1762242354208,500.0,0.00043835,120]
[393046106,1762242354916,500.0,0.00043835,120]
[393046108,1762242356955,500.0,0.00043835,120]
[393046109,1762242357981,410.92169473,0.00043835,120]
[393046110,1762242358425,500.0,0.00043835,120]
[393046111,1762242359373,500.0,0.00043835,120]
[393046112,1762242360637,500.0,0.00043835,120]
[393046113,1762242360976,500.0,0.00043835,120]
[393046114,1762242363119,500.0,0.00043835,120]
[393046116,1762242364947,500.0,0.00043835,120]
[393046117,1762242366074,500.0,0.00043835,120]
[393046118,1762242367143,500.0,0.00043835,120]
[393046119,1762242367778,151.0,0.00043735,120]
[393046120,1762242368961,500.0,0.00043835,120]
[393046121,1762242369314,151.0,0.00043735,120]
[393046122,1762242370835,151.0,0.00043735,120]
[393046123,1762242371631,500.0,0.00043835,120]
[393046124,1762242372075,673.34814,0.00043735,120]
[393046125,1762242373563,673.34814,0.00043735,120]
[393046126,1762242374592,500.0,0.00043835,120]
[393046127,1762242375161,673.34814,0.00043735,120]
[393046128,1762242375888,174.0,0.00037708,120]
[393046129,1762242376709,673.34814,0.00043735,120]
[393046130,1762242376931,742.89,0.00043835,120]
[393046131,1762242377140,500.0,0.00043835,120]
[393046132,1762242377292,500.0,0.00043835,120]
[393046133,1762242379324,500.0,0.00043835,120]
[393046134,1762242381601,500.0,0.00043835,120]
[393046135,1762242387996,500.0,0.00043835,120]
[393046136,1762242388062,500.0,0.00043835,120]
[393046137,1762242388125,500.0,0.00043835,120]
[393046138,1762242393674,151.0,0.00043735,30]
[393046139,1762242394006,500.0,0.00043835,120]
[393046140,1762242394598,500.0,0.00043835,120]
[393046141,1762242397096,500.0,0.00043835,120]
[393046142,1762242398553,502.8037639,0.00043835,120]
[393046143,1762242398662,511.18857318,0.00043835,120]
[393046144,1762242399374,343.85,0.00043835,120]
[393046145,1762242400720,500.0,0.00043835,120]
[393046146,1762242402822,583.30359828,0.00043835,120]
[393046147,1762242403188,500.0,0.00043835,120]
[393046148,1762242405342,500.0,0.00043835,120]
[393046149,1762242407081,151.0,0.00043735,120]
[393046150,1762242407142,575.83802768,0.00043835,120]
[393046151,1762242407967,500.0,0.00043835,120]
[393046152,1762242408613,500.0,0.00043835,120]
[393046153,1762242409287,151.0,0.00043735,120]
[393046154,1762242410751,500.0,0.00043835,120]
[393046155,1762242411236,500.0,0.00043835,120]
[393046156,1762242412112,151.0,0.00043735,120]
[393046157,1762242412425,503.35245117,0.00043835,120]
[393046158,1762242412597,500.0,0.00043835,120]
[393046159,1762242413740,151.0,0.00043735,120]
[393046160,1762242413815,500.0,0.00043835,120]
[393046161,1762242415430,500.0,0.00043835,120]
[393046162,1762242417696,500.0,0.00043835,120]
[393046163,1762242418666,500.0,0.00043835,120]
[393046164,1762242419363,375.96217042,0.00043835,120]
[393046165,1762242422924,500.0,0.00043835,120]
[393046166,1762242423429,230.58609574,0.00043835,120]
[393046411,1762242488518,329.047896,0.00013699,2]
[393047103,1762242632420,-531.13421893,0.00018624,2]
[393047104,1762242632430,-531.13421893,0.00018624,2]
[393047105,1762242632440,-446.22533552,0.00018624,2]
[393047106,1762242632451,-84.90888341,0.00018624,2]
[393047107,1762242632460,-531.13421893,0.00018624,2]
[393047108,1762242632471,-531.13421893,0.00018624,2]
[393047109,1762242632480,-531.13421893,0.00018624,2]
[393047110,1762242632489,-531.13421893,0.00018624,2]
[393047111,1762242632498,-531.13421893,0.00018624,2]
[393047112,1762242632508,-50000.0,0.00018625,2]
[393047113,1762242632517,-500.0,0.00018627,2]
[393047114,1762242632526,-160.0,0.00018637,2]
[393047115,1762242632535,-500.0,0.00018673,2]
[393047116,1762242632545,-505.84600077,0.00019221,2]
[393047117,1762242632554,-1696.0025224,0.00020169,2]
[393047118,1762242632563,-329.047896,0.00020187,2]
[393047119,1762242632572,-150.0,0.00020359,2]
[393047120,1762242632582,-6284.71823584,0.00021465,2]
[393047121,1762242632591,-150.0,0.00022209,2]
[393047122,1762242632601,-332.67,0.000223,7]
[393047123,1762242632610,-215.588007,0.00023891,2]
[393047124,1762242632619,-150.0,0.0002406,2]
[393047125,1762242632628,-441.34406098,0.00024873,2]
[393047126,1762242632638,-500.0,0.00024873,2]
[393047127,1762242632647,-151.0,0.00024885,2]
[393047128,1762242632657,-151.0,0.00024885,2]
[393047129,1762242632666,-151.0,0.00024885,2]
[393047130,1762242632675,-151.0,0.00024885,2]
[393047131,1762242632684,-151.0,0.00024885,2]
[393047132,1762242632694,-151.0,0.00024885,2]
[393047133,1762242632702,-151.0,0.00024885,2]
[393047134,1762242632712,-151.0,0.00024885,2]
[393047135,1762242632721,-151.0,0.00024885,2]
[393047136,1762242632731,-151.0,0.00024885,2]
[393047137,1762242632740,-151.0,0.00024885,2]
[393047138,1762242632750,-284.63813991,0.00024885,2]
[393047139,1762242632759,-21426.22,0.000249,7]
[393047140,1762242632769,-167.27,0.000249,14]
[393047141,1762242632778,-168151.666199,0.000249,2]
[393047142,1762242632787,-5579.46071753,0.00025321,2]
[393047143,1762242632796,-424.05253779,0.00025421,2]
[393047144,1762242632805,-150.0,0.00025911,2]
[393047145,1762242632815,-329.047896,0.00026676,2]
[393047146,1762242632824,-491.38,0.00026749,20]
[393047147,1762242632833,-150.0,0.00027762,2]
[393047148,1762242632843,-164.0,0.00028466,14]
[393047149,1762242632852,-6284.71823584,0.0002862,2]
[393047150,1762242632861,-150.0,0.00029613,2]
[393047151,1762242632870,-399.46520389,0.00030064,2]
[393047152,1762242632880,-332.67,0.000303,7]
[393047154,1762242632890,-281.033,0.00030601,26]
[393047155,1762242632902,-3225.12049675,0.0003099,2]
[393047156,1762242632912,-1000.0,0.00031,31]
[393047157,1762242632922,-150.0,0.00031463,2]
[393047158,1762242633074,-112101.110799,0.00031605,2]
[393047159,1762242633087,-500.0,0.00031673,5]
[393047160,1762242633097,-500.0,0.00031673,5]
[393047161,1762242633106,-500.0,0.00031673,5]
[393047162,1762242633115,-167.27,0.000317,14]
[393047163,1762242633124,-1000.0,0.00032,32]
[393047164,1762242633133,-223.34226752,0.00032221,5]
[393047165,1762242633142,-1000.0,0.00032221,5]
[393047166,1762242633151,-1000.0,0.00032221,5]
[393047167,1762242633160,-1500.0,0.00032768,5]
[393047168,1762242633169,-245.16246965,0.00032768,5]
[393047169,1762242633178,-21426.22,0.000328,7]
[393047170,1762242633187,-150.0,0.000328,5]
[393047171,1762242633196,-7972.46,0.00032877,10]
[393047172,1762242633206,-56050.5553995,0.00032898,2]
[393047173,1762242633215,-1460.29,0.000329,14]
[393047174,1762242633224,-663.03817598,0.00032908,2]
[393047176,1762242633234,-1193.46871677,0.00032908,2]
[393047178,1762242633244,-2121.72216315,0.00032908,2]
[393047180,1762242633254,-3315.19087992,0.00032908,2]
[393047182,1762242633263,-4773.87486709,0.00032908,2]
[393047184,1762242633272,-6491.27635052,0.00032908,2]
[393047186,1762242633281,-517.87813998,0.00032908,2]
[393047188,1762242633290,-932.18065197,0.00032908,2]
[393047190,1762242633299,-1657.21004794,0.00032908,2]
[393047192,1762242633309,-2586.80130921,0.00032908,2]
[393047194,1762242633318,-1000.0,0.00033,33]
[393047196,1762242633327,-329.047896,0.00033165,2]
[393047198,1762242633336,-150.0,0.00033314,2]
[393047200,1762242633346,-2000.0,0.00033316,5]
[393047202,1762242633355,-250.0,0.00033348,5]
[393047204,1762242633364,-474.0625238,0.00033445,2]
[393047206,1762242633373,-853.31254283,0.00033445,2]
[393047208,1762242633383,-1515.48307607,0.00033445,2]
[393047210,1762242633392,-1000.0,0.00034,34]
[393047212,1762242633401,-1000.0,0.00035,8]
[393047214,1762242633411,-270.0,0.0003527,2]
[393047216,1762242633421,-270.0,0.00035443,2]
[393047218,1762242633430,-168.0,0.00035569,2]
[393047220,1762242633439,-270.0,0.00035689,7]
[393047222,1762242633448,-6284.71823584,0.00035775,3]
[393047224,1762242633457,-167.27,0.000358,30]
[393047226,1762242633466,-1460.29,0.000358,14]
[393047228,1762242633475,-1000.0,0.00036,4]
[393047230,1762242633484,-270.0,0.00036103,2]
[393047232,1762242633493,-168.0,0.00036132,7]
[393047234,1762242633503,-216.0,0.00036183,2]
[393047236,1762242633512,-168.0,0.00036347,2]
[393047238,1762242633521,-332.67,0.000364,7]
[393047240,1762242633531,-270.0,0.00036415,2]
[393047242,1762242633540,-270.0,0.00036532,2]
[393047244,1762242633550,-270.0,0.00036566,7]
[393047246,1762242633559,-174.0,0.00036578,7]
[393047248,1762242633569,-897.45,0.000367,2]
[393047250,1762242633578,-216.0,0.00036904,2]
[393047252,1762242633588,-1000.0,0.00037,10]
[393047254,1762242633597,-21426.22,0.00037,14]
[393047255,1762242633606,-216.0,0.00037072,7]
[393047257,1762242633616,-174.0,0.00037093,2]
[393047259,1762242633626,-213.35971605,0.00037099,2]
[393047261,1762242633635,-383.66344139,0.00037099,2]
[393047263,1762242633644,-208.61908979,0.00037099,2]
[393047265,1762242633654,-375.13884727,0.00037099,2]
[393047267,1762242633663,-175.455,0.00037153,5]
[393047269,1762242633672,-216.0,0.00037221,2]
[393047271,1762242633682,-270.0,0.0003738,2]
[393047273,1762242633691,-12500.0,0.00037464,10]
[393047275,1762242633701,-12500.0,0.00037472,10]
[393047277,1762242633711,-12500.0,0.00037481,10]
[393047279,1762242633721,-12500.0,0.0003749,10]
[393047281,1762242633730,-12500.0,0.00037499,10]
[393047283,1762242633740,-12500.0,0.00037508,10]
[393047285,1762242633749,-6839.40529577,0.0003751,10]
[393047287,1762242633759,-216.0,0.0003758,7]
[393047289,1762242633768,-1460.29,0.000376,14]
[393047291,1762242633777,-1000.0,0.00037897,2]
[393047292,1762242633787,-1000.0,0.00037897,2]
[393047295,1762242633796,-1000.0,0.00037897,2]
[393047297,1762242633807,-1000.0,0.00037897,2]
[393047299,1762242633817,-1102.21484475,0.00037897,2]
[393047301,1762242633826,-1158.59970841,0.0003792,2]
[393047302,1762242633836,-270.0,0.00037926,7]
[393047304,1762242633846,-270.0,0.00037946,2]
[393047306,1762242633856,-1000.0,0.00038,6]
[393047309,1762242633866,-167.27,0.00038,30]
[393047311,1762242633875,-1158.59970841,0.000381,2]
[393047312,1762242633885,-270.0,0.00038112,2]
[393047315,1762242633897,-332.67,0.000386,7]
[393047317,1762242633907,-1158.59970841,0.00038605,2]
[393047319,1762242633916,-5579.46071753,0.0003864,2]
[393047321,1762242633925,-1158.59970841,0.00038732,2]
[393047322,1762242633935,-270.0,0.00038755,7]
[393047324,1762242633944,-168.0,0.00038765,2]
[393047325,1762242633954,-270.0,0.00038808,2]
[393047326,1762242633963,-1739.12864854,0.00038863,2]
[393047327,1762242633975,-1158.59970841,0.00038988,2]
[393047328,1762242633985,-411.0,0.00039,2]
[393047329,1762242633995,-1000.0,0.00039,12]
[393047330,1762242634005,-21426.22,0.00039,14]
[393047331,1762242634015,-1739.12864854,0.0003912,2]
[393047332,1762242634025,-1739.12864854,0.00039256,2]
[393047333,1762242634035,-1158.59970841,0.00039357,2]
[393047334,1762242634044,-1739.12864857,0.00039502,2]
[393047335,1762242634053,-329.047896,0.00039654,2]
[393047336,1762242634065,-1158.59970845,0.00039697,2]
[393047338,1762242634078,-179.71246006,0.00039991,22]
[393047339,1762242634088,-1998.62053063,0.0004,2]
[393047341,1762242634097,-3003.09932222,0.0004,15]
[393047343,1762242634107,-1460.29,0.0004,14]
[393047345,1762242634116,-206.303154,0.0004,2]
[393047346,1762242634126,-160.0,0.00040059,120]
[393047348,1762242634135,-200.0,0.00040065,20]
[393047349,1762242634144,-167.27,0.000401,30]
[393047350,1762242634154,-151.0,0.000402,17]
[393047351,1762242634164,-160.0,0.00042062,120]
[393047352,1762242634174,-800.0,0.00042654,14]
[393047353,1762242634183,-500.0,0.0004283,30]
[393047354,1762242634192,-1460.29,0.000429,14]
[393047355,1762242634202,-1460.29,0.000429,14]
[393047356,1762242634211,-6284.71823584,0.0004293,3]
[393047357,1762242634222,-332.67,0.00043,14]
[393047358,1762242634231,-150.0,0.00043402,120]
[393047359,1762242634240,-800.0,0.00043483,14]
[393047360,1762242634250,-571.1699205,0.00043639,14]
[393047361,1762242634259,-800.0,0.00043669,14]
[393047362,1762242634268,-800.0,0.00043685,14]
[393047363,1762242634277,-800.0,0.00043689,14]
[393047364,1762242634287,-151.0,0.00043735,7]
[393047365,1762242634296,-151.0,0.00043735,120]
[393047366,1762242634305,-1045.604328,0.0004378,16]
[393047367,1762242634314,-150.0,0.000438,17]
[393047368,1762242634324,-1000.0,0.000438,17]
[393047370,1762242634333,-800.0,0.00043804,14]
[393047371,1762242634343,-800.0,0.00043816,14]
[393047372,1762242634353,-800.0,0.00043819,14]
[393047373,1762242634363,-501.14666575,0.00043835,12]
[393047374,1762242634372,-1989.1796454,0.00043835,2]
[393047375,1762242634382,-500.0,0.00043835,7]
[393047376,1762242634392,-41484.8212721,0.00043835,2]
[393047377,1762242634401,-500.0,0.00043835,14]
[393047378,1762242634411,-505.41478063,0.00043835,20]
[393047379,1762242634421,-500.0,0.00043835,14]
[393047380,1762242634430,-500.0,0.00043835,2]
[393047381,1762242634440,-500.0,0.00043835,12]
[393047382,1762242634449,-1477.72,0.00043835,2]
[393047383,1762242634459,-269.41390426,0.00043835,120]
[393047384,1762242634468,-513.42294194,0.00043835,120]
[393047385,1762242634477,-500.0,0.00043835,120]
[393047386,1762242634487,-500.0,0.00043835,120]
[393047387,1762242634496,-500.0,0.00043835,120]
[393047388,1762242634505,-508.27008166,0.00043835,120]
[393047389,1762242634514,-500.0,0.00043835,120]
[393047390,1762242634524,-505.9083274,0.00043835,120]
[393047391,1762242634533,-203.17141378,0.00043835,120]
[393047392,1762242634542,-621.4099799,0.00043835,120]
[393047393,1762242634551,-500.0,0.00043835,120]
[393047394,1762242634560,-500.0,0.00043835,120]
[393047395,1762242634569,-500.0,0.00043835,120]
[393047396,1762242634578,-500.0,0.00043835,120]
[393047397,1762242634587,-500.0,0.00043835,120]
[393047398,1762242634597,-500.0,0.00043835,120]
[393047399,1762242634607,-501.79543448,0.00043835,2]
[393047400,1762242634616,-500.0,0.00043835,120]
[393047401,1762242634625,-500.0,0.00043835,120]
[393047402,1762242634634,-500.0,0.00043835,120]
[393047403,1762242634643,-504.04594409,0.00043835,120]
[393047404,1762242634652,-504.08106041,0.00043835,120]
[393047405,1762242634662,-500.0,0.00043835,120]
[393047406,1762242634674,-507.60372438,0.00043835,120]
[393047407,1762242634683,-500.0,0.00043835,120]
[393047408,1762242634692,-500.0,0.00043835,120]
[393047409,1762242634701,-500.0,0.00043835,120]
[393047410,1762242634711,-502.83344745,0.00043835,120]
[393047411,1762242634722,-500.0,0.00043835,120]
[393047412,1762242634732,-506.83387863,0.00043835,120]
[393047413,1762242634742,-500.0,0.00043835,120]
[393047414,1762242634751,-500.0,0.00043835,120]
[393047415,1762242634761,-500.0,0.00043835,120]
[393047416,1762242634771,-550.31594281,0.00043835,120]
[393047417,1762242634780,-1308.3,0.00043835,120]
[393047418,1762242634790,-500.0,0.00043835,120]
[393047419,1762242634799,-500.0,0.00043835,120]
[393047420,1762242634809,-552.55,0.00043835,120]
[393047421,1762242634818,-400.71369459,0.00043835,120]
[393047422,1762242634828,-503.2854329,0.00043835,120]
[393047423,1762242634837,-500.0,0.00043835,7]
[393047424,1762242634847,-500.0,0.00043835,120]
[393047425,1762242634857,-347.458065,0.00043835,15]
[393047426,1762242634866,-505.51985233,0.00043835,120]
[393047427,1762242634876,-500.0,0.00043835,120]
[393047428,1762242634885,-500.0,0.00043835,120]
[393047429,1762242634896,-500.0,0.00043835,120]
[393047430,1762242634905,-347.458065,0.00043835,15]
[393047431,1762242634915,-500.0,0.00043835,60]
[393047432,1762242634925,-500.0,0.00043835,120]
[393047433,1762242634934,-500.0,0.00043835,120]
[393047434,1762242634943,-347.458065,0.00043835,15]
[393047435,1762242634953,-241.19003685,0.00043835,120]
[393047436,1762242634963,-506.65386537,0.00043835,120]
[393047437,1762242634972,-347.458065,0.00043835,15]
[393047438,1762242634982,-500.0,0.00043835,120]
[393047439,1762242634991,-500.0,0.00043835,120]
[393047440,1762242635000,-500.0,0.00043835,120]
[393047441,1762242635009,-509.47132231,0.00043835,120]
[393047442,1762242635018,-500.0,0.00043835,120]
[393047443,1762242635027,-500.0,0.00043835,120]
[393047444,1762242635036,-500.0,0.00043835,120]
[393047445,1762242635045,-500.0,0.00043835,120]
[393047446,1762242635054,-500.0,0.00043835,21]
[393047447,1762242635062,-504.46534283,0.00043835,120]
[393047448,1762242635075,-500.0,0.00043835,120]
[393047449,1762242635084,-505.58411498,0.00043835,120]
[393047450,1762242635093,-500.0,0.00043835,120]
[393047451,1762242635102,-505.08760712,0.00043835,120]
[393047452,1762242635112,-248.52463417,0.00043835,30]
[393047453,1762242635122,-500.0,0.00043835,120]
[393047454,1762242635131,-500.0,0.00043835,120]
[393047455,1762242635140,-500.0,0.00043835,7]
[393047456,1762242635150,-156.44641477,0.00043835,2]
[393047457,1762242635159,-500.0,0.00043835,120]
[393047458,1762242635167,-500.0,0.00043835,120]
[393047459,1762242635176,-505.79170573,0.00043835,120]
[393047460,1762242635185,-500.0,0.00043835,120]
[393047461,1762242635194,-505.78068634,0.00043835,120]
[393047462,1762242635203,-505.66548338,0.00043835,120]
[393047463,1762242635212,-500.0,0.00043835,120]
[393047464,1762242635221,-500.0,0.00043835,45]
[393047465,1762242635230,-500.0,0.00043835,120]
[393047466,1762242635239,-508.05594802,0.00043835,120]
[393047467,1762242635248,-337.39,0.00043835,120]
[393047468,1762242635258,-500.0,0.00043835,15]
[393047469,1762242635269,-500.0,0.00043835,120]
[393047470,1762242635278,-500.0,0.00043835,120]
[393047471,1762242635287,-293.38560455,0.00043835,120]
[393047472,1762242635296,-500.0,0.00043835,10]
[393047473,1762242635305,-500.0,0.00043835,120]
[393047474,1762242635315,-506.24349475,0.00043835,120]
[393047475,1762242635324,-387.74371822,0.00043835,120]
[393047476,1762242635334,-461.69908974,0.00043835,120]
[393047477,1762242635343,-500.0,0.00043835,120]
[393047478,1762242635354,-479.61393573,0.00043835,120]
[393047479,1762242635363,-505.49030888,0.00043835,120]
[393047480,1762242635373,-500.0,0.00043835,120]
[393047481,1762242635383,-501.9453312,0.00043835,120]
[393047482,1762242635392,-500.0,0.00043835,120]
[393047483,1762242635401,-500.0,0.00043835,120]
[393047484,1762242635410,-512.34674649,0.00043835,120]
[393047485,1762242635420,-517.31765851,0.00043835,120]
[393047486,1762242635431,-500.0,0.00043835,120]
[393047487,1762242635442,-506.03261717,0.00043835,120]
[393047488,1762242635451,-500.0,0.00043835,120]
[393047489,1762242635461,-500.0,0.00043835,120]
[393047490,1762242635470,-504.7484835,0.00043835,120]
[393047491,1762242635480,-500.0,0.00043835,120]
[393047492,1762242635492,-501.63415391,0.00043835,120]
[393047493,1762242635501,-500.0,0.00043835,120]
[393047494,1762242635511,-503.76919068,0.00043835,120]
[393047495,1762242635520,-500.0,0.00043835,120]
[393047496,1762242635529,-500.0,0.00043835,120]
[393047497,1762242635540,-501.64122524,0.00043835,120]
[393047498,1762242635549,-485.39223764,0.00043835,120]
[393047499,1762242635559,-504.53710736,0.00043835,120]
[393047500,1762242635568,-711.93,0.00043835,120]
[393047501,1762242635577,-500.0,0.00043835,120]
[393047502,1762242635587,-502.50593043,0.00043835,120]
[393047503,1762242635596,-509.44538309,0.00043835,120]
[393047504,1762242635605,-500.0,0.00043835,120]
[393047505,1762242635614,-500.0,0.00043835,120]
[393047506,1762242635623,-500.0,0.00043835,120]
[393047507,1762242635632,-505.51638866,0.00043835,120]
[393047508,1762242635641,-504.54639705,0.00043835,120]
[393047509,1762242635650,-171.81680976,0.00043835,120]
[393047510,1762242635659,-150.0,0.00043835,2]
[393047511,1762242635668,-500.0,0.00043835,120]
[393047512,1762242635677,-505.15016655,0.00043835,120]
[393047513,1762242635687,-509.10597795,0.00043835,120]
[393047514,1762242635696,-500.0,0.00043835,120]
[393047515,1762242635705,-500.0,0.00043835,2]
[393047516,1762242635715,-500.0,0.00043835,120]
[393047517,1762242635724,-500.0,0.00043835,120]
[393047518,1762242635733,-513.9139541,0.00043835,120]
[393047519,1762242635742,-505.41041403,0.00043835,120]
[393047520,1762242635751,-500.0,0.00043835,120]
[393047521,1762242635760,-507.73287251,0.00043835,120]
[393047522,1762242635770,-500.0,0.00043835,120]
[393047523,1762242635779,-500.0,0.00043835,120]
[393047524,1762242635788,-500.0,0.00043835,120]
[393047525,1762242635798,-574.59901641,0.00043835,120]
[393047526,1762242635807,-215.01445972,0.00043835,120]
[393047527,1762242635816,-500.0,0.00043835,120]
[393047528,1762242635825,-500.0,0.00043835,120]
[393047529,1762242635835,-500.0,0.00043835,120]
[393047530,1762242635844,-500.0,0.00043835,120]
[393047531,1762242635854,-500.0,0.00043835,120]
[393047532,1762242635863,-500.0,0.00043835,120]
[393047533,1762242635873,-500.0,0.00043835,120]
[393047534,1762242635882,-9317.3,0.00043835,3]
[393047535,1762242635892,-500.0,0.00043835,120]
[393047536,1762242635902,-150.0,0.00043836,30]
[393047537,1762242635911,-500.0,0.00043836,30]
[393047538,1762242635920,-151.0,0.00043836,30]
[393047539,1762242635930,-151.99056464,0.00043836,2]
[393047540,1762242635939,-500.0,0.00043891,30]
[393047541,1762242635948,-208.37,0.00043916,120]
[393047542,1762242635957,-301.0,0.00043928,120]
[393047543,1762242635966,-500.0,0.00043946,30]
[393047544,1762242635976,-396.0,0.00044,30]
[393047545,1762242635988,-554.0,0.00044012,120]
[393047546,1762242636006,-208.37,0.00044016,120]
[393047547,1762242636015,-522.0,0.00044072,120]
[393047548,1762242636024,-500.0,0.00044109,7]
[393047549,1762242636034,-500.0,0.00044109,120]
[393047550,1762242636043,-500.0,0.00044109,120]
[393047551,1762242636052,-500.0,0.00044109,120]
[393047552,1762242636061,-500.0,0.00044109,120]
[393047553,1762242636071,-500.0,0.00044109,120]
[393047554,1762242636081,-500.0,0.00044109,120]
[393047555,1762242636090,-500.0,0.00044109,120]
[393047556,1762242636099,-505.22955395,0.00044109,120]
[393047557,1762242636108,-500.0,0.00044109,14]
[393047558,1762242636117,-500.0,0.00044109,120]
[393047559,1762242636127,-500.0,0.00044109,120]
[393047560,1762242636137,-500.0,0.00044109,120]
[393047561,1762242636148,-500.0,0.00044109,120]
[393047562,1762242636157,-500.0,0.00044109,120]
[393047563,1762242636166,-500.0,0.00044109,120]
[393047564,1762242636175,-299.31809481,0.00044109,120]
[393047565,1762242636185,-500.0,0.00044109,120]
[393047566,1762242636195,-500.0,0.00044109,120]
[393047567,1762242636204,-500.0,0.00044109,120]
[393047568,1762242636213,-500.0,0.00044109,120]
[393047569,1762242636223,-500.0,0.00044109,120]
[393047570,1762242636232,-500.0,0.00044109,120]
[393047571,1762242636241,-500.0,0.00044109,120]
[393047572,1762242636250,-500.0,0.00044109,120]
[393047573,1762242636260,-500.0,0.00044109,120]
[393047574,1762242636269,-500.0,0.00044109,120]
[393047575,1762242636278,-500.0,0.00044109,120]
[393047576,1762242636287,-500.0,0.00044109,120]
[393047577,1762242636296,-503.60672116,0.00044109,120]
[393047578,1762242636305,-500.0,0.00044109,120]
[393047579,1762242636315,-500.0,0.00044109,120]
[393047580,1762242636324,-500.0,0.00044109,120]
[393047581,1762242636333,-614.47209438,0.00044109,120]
[393047582,1762242636342,-500.0,0.00044109,120]
[393047583,1762242636350,-500.0,0.00044109,30]
[393047584,1762242636359,-503.96258533,0.00044109,120]
[393047585,1762242636368,-500.0,0.00044109,120]
[393047586,1762242636377,-500.0,0.00044109,120]
[393047587,1762242636392,-504.81843725,0.00044109,120]
[393047588,1762242636401,-500.0,0.00044109,120]
[393047589,1762242636410,-506.97009195,0.00044109,120]
[393047590,1762242636419,-613.96,0.00044109,120]
[393047591,1762242636428,-502.81726243,0.00044109,120]
[393047592,1762242636437,-511.05624752,0.00044109,120]
[393047593,1762242636447,-500.0,0.00044109,120]
[393047594,1762242636457,-500.0,0.00044109,120]
[393047595,1762242636472,-500.0,0.00044109,120]
[393047596,1762242636482,-505.93535598,0.00044109,120]
[393047597,1762242636491,-500.0,0.00044109,120]
[393047598,1762242636500,-500.0,0.00044109,120]
[393047599,1762242636628,-500.0,0.00044109,120]
[393047600,1762242636641,-500.0,0.00044109,120]
[393047601,1762242636651,-500.0,0.00044109,120]
[393047602,1762242636661,-500.0,0.00044109,120]
[393047603,1762242636670,-500.0,0.00044109,120]
[393047604,1762242636680,-500.0,0.00044109,120]
[393047605,1762242636690,-500.0,0.00044109,120]
[393047606,1762242636701,-506.86099849,0.00044109,120]
[393047607,1762242636710,-506.8508366,0.00044109,120]
[393047608,1762242636719,-508.27984573,0.00044109,120]
[393047609,1762242636729,-500.0,0.00044109,120]
[393047610,1762242636738,-505.2045718,0.00044109,120]
[393047611,1762242636748,-500.0,0.00044109,120]